fUSD/lending_fUSD_20251109
["ID","MTS","AMOUNT","RATE_DAILY","PERIOD"]
[393423513,1762648216165,-152.36803184,0.000386,120]
[393423514,1762648216193,-152.36803184,0.000386,120]
[393423515,1762648216220,-152.36803184,0.000386,120]
[393423516,1762648216249,-152.36803184,0.000386,120]
[393423517,1762648216276,-152.36803184,0.000386,120]
[393423518,1762648216305,-152.36803184,0.000386,120]
[393423519,1762648216332,-152.36803184,0.000386,120]
[393423520,1762648216362,-152.36803184,0.000386,120]
[393423521,1762648216389,-152.36803184,0.000386,120]
[393423522,1762648216421,-151.0,0.00038987,120]
[393423523,1762648216448,-274.84924235,0.00039075,30]
[393423524,1762648216486,-1093672.12422833,0.00039102,30]
[393423525,1762648216515,-894566.20086293,0.00039102,30]
[393423526,1762648219049,500.0,0.00039076,120]
[393423527,1762648219323,212.91109807,0.00039076,120]
[393423528,1762648231230,-152.36803184,0.000386,120]
[393423529,1762648231264,-151.0,0.00038987,120]
[393423530,1762648231292,-151.0,0.00038987,120]
[393423531,1762648231318,-286.253533,0.00038987,120]
[393423532,1762648231347,-1105.279258,0.00038987,120]
[393423533,1762648231374,-1105.279258,0.00038987,120]
[393423534,1762648231403,-407.518099,0.00038987,120]
[393423535,1762648231433,-1105.279258,0.00038987,120]
[393423536,1762648231460,-407.518099,0.00038987,120]
[393423537,1762648231498,-151.0,0.00039076,120]
[393423538,1762648231526,-151.0,0.00039076,120]
[393423539,1762648231553,-1105.279258,0.00039076,120]
[393423542,1762648231580,-1105.279258,0.00039076,120]
[393423545,1762648231609,-407.518099,0.00039076,120]
[393423546,1762648231636,-1105.279258,0.00039076,120]
[393423548,1762648231665,-407.518099,0.00039076,120]
[393423552,1762648231696,-2758186.37897261,0.00039102,30]
[393423554,1762648231728,-2232509.25151855,0.00039102,30]
[393423555,1762648231764,-250.0,0.00016979,2]
[393423556,1762648231773,-195.0,0.0001699,2]
[393423557,1762648231783,-250.0,0.00017,2]
[393423558,1762648231792,-160.0,0.00017259,2]
[393423559,1762648231802,-261.0,0.00017398,2]
[393423560,1762648231811,-410.28585585,0.0001749,2]
[393423561,1762648231821,-1021.04864415,0.00017497,2]
[393423562,1762648231837,-178.95135585,0.00017497,2]
[393423563,1762648231846,-1200.0,0.00017498,2]
[393423564,1762648231855,-300.0,0.00017499,2]
[393423565,1762648231864,-300.0,0.00017499,2]
[393423566,1762648231873,-550.0,0.00017499,2]
[393423567,1762648231883,-300.0,0.00017499,2]
[393423568,1762648231892,-2000.0,0.000175,2]
[393423569,1762648231902,-253.04864415,0.000175,2]
[393423570,1762648231913,-746.95135585,0.000175,2]
[393423571,1762648231922,-116.44378928,0.000175,2]
[393423572,1762648231934,-877.0405456,0.000175,2]
[393423573,1762648231975,-1085.12755497,0.000175,2]
[393423574,1762648231992,-17921.38811015,0.000175,2]
[393423575,1762648232001,-280.06002409,0.000175,2]
[393423576,1762648232012,-1967.4358,0.000175,2]
[393423577,1762648232023,-1600.36807511,0.000175,2]
[393423578,1762648232033,-153.84597773,0.000175,2]
[393423580,1762648232043,-2635.18976662,0.00017509,2]
[393423582,1762648232055,-2396.08881,0.0001752,2]
[393423584,1762648232064,-2396.08881,0.0001752,2]
[393423585,1762648232074,-2396.08881,0.0001752,2]
[393423587,1762648232083,-2396.08881,0.0001752,2]
[393423589,1762648232093,-1600.36807509,0.00017544,2]
[393423591,1762648232103,-2635.18976654,0.00017552,2]
[393423593,1762648232113,-438.49199624,0.00017573,2]
[393423595,1762648232124,-500.0,0.00017573,2]
[393423597,1762648232133,-500.0,0.00017573,2]
[393423599,1762648232143,-500.0,0.00017573,2]
[393423601,1762648232153,-500.0,0.00017573,2]
[393423602,1762648232162,-1600.36807509,0.00017589,2]
[393423604,1762648232171,-188.25,0.0001759,2]
[393423605,1762648232181,-188.25,0.0001759,2]
[393423607,1762648232190,-2891.16,0.0001759,2]
[393423608,1762648232199,-2891.16,0.0001759,2]
[393423609,1762648232208,-515.79,0.0001759,3]
[393423610,1762648232218,-2635.18976654,0.00017596,2]
[393423612,1762648232228,-279.99066456,0.00017599,2]
[393423613,1762648232237,-251.32885936,0.00017599,2]
[393423615,1762648232246,-500.0,0.00017599,2]
[393423616,1762648232255,-403.58871831,0.00017599,2]
[393423617,1762648232265,-278.19810614,0.00017599,2]
[393423618,1762648232274,-500.0,0.00017599,2]
[393423619,1762648232283,-500.0,0.00017599,2]
[393423620,1762648232294,-500.0,0.00017599,2]
[393423621,1762648232303,-500.0,0.00017599,2]
[393423622,1762648232313,-500.0,0.00017599,2]
[393423623,1762648232322,-500.0,0.00017599,2]
[393423624,1762648232331,-173.35088244,0.00017599,2]
[393423625,1762648232341,-500.0,0.00017599,2]
[393423626,1762648232350,-500.0,0.00017599,2]
[393423627,1762648232359,-500.0,0.00017599,2]
[393423628,1762648232368,-500.0,0.00017599,2]
[393423629,1762648232378,-500.0,0.00017599,2]
[393423630,1762648232387,-500.0,0.00017599,2]
[393423631,1762648232397,-500.0,0.00017599,2]
[393423632,1762648232407,-500.0,0.00017599,2]
[393423633,1762648232417,-500.0,0.00017599,2]
[393423634,1762648232426,-500.0,0.00017599,2]
[393423635,1762648232436,-500.0,0.00017599,2]
[393423636,1762648232446,-500.0,0.00017599,2]
[393423637,1762648232456,-500.0,0.00017599,2]
[393423638,1762648232465,-500.0,0.00017599,2]
[393423639,1762648232475,-500.0,0.00017599,2]
[393423640,1762648232484,-500.0,0.00017599,2]
[393423641,1762648232494,-500.0,0.00017599,2]
[393423642,1762648232504,-500.0,0.00017599,2]
[393423643,1762648232513,-500.0,0.00017599,2]
[393423644,1762648232523,-500.0,0.00017599,2]
[393423645,1762648232532,-500.0,0.00017599,2]
[393423646,1762648232542,-500.0,0.00017599,2]
[393423647,1762648232554,-500.0,0.00017599,2]
[393423648,1762648232563,-547.61,0.00017599,2]
[393423649,1762648232573,-500.0,0.00017599,2]
[393423650,1762648232582,-500.0,0.00017599,2]
[393423651,1762648232592,-500.0,0.00017599,2]
[393423652,1762648232601,-500.0,0.00017599,2]
[393423653,1762648232610,-500.0,0.00017599,2]
[393423654,1762648232619,-254.97088298,0.00017599,2]
[393423655,1762648232631,-245.02911702,0.00017599,2]
[393423656,1762648232641,-82.75088288,0.00017599,2]
[393423657,1762648236749,-1105.279258,0.00038987,120]
[393423658,1762648236779,-407.518099,0.00038987,120]
[393423659,1762648236809,-151.0,0.00038987,120]
[393423660,1762648236839,-407.518099,0.00038987,120]
[393423661,1762648236872,-151.0,0.00038987,120]
[393423662,1762648236932,-1105.279255,0.00039076,120]
[393423663,1762648236964,-407.518099,0.00039076,120]
[393423664,1762648236997,-151.0,0.00039076,120]
[393423665,1762648237033,-407.518103,0.00039076,120]
[393423666,1762648237067,-151.0,0.00039076,120]
[393423667,1762648237102,-1420243.32831699,0.00039102,30]
[393423668,1762648237131,-150.05,0.00039108,30]
[393423669,1762648237161,-339.67876087,0.00039108,30]
[393423670,1762648237189,-150.05,0.00039108,30]
[393423671,1762648237216,-218.8186462,0.0003911,120]
[393423672,1762648237243,-3000.0,0.0003911,30]
[393423673,1762648237270,-10000.0,0.00039131,30]
[393423674,1762648237298,-724.96,0.00039233,30]
[393423675,1762648237324,-724.96,0.00039233,30]
[393423676,1762648237351,-724.96,0.00039233,30]
[393423677,1762648237383,-724.96,0.00039233,30]
[393423678,1762648237413,-872.0,0.00039399,20]
[393423679,1762648237444,-150.0,0.00039494,120]
[393423680,1762648237476,-724.96,0.00039507,30]
[393423692,1762648237696,-724.96,0.00039507,30]
[393423693,1762648237728,-150.0,0.00039619,120]
[393423694,1762648237756,-652.73,0.000397,30]
[393423695,1762648237784,-724.96,0.00039781,30]
[393423696,1762648237811,-724.96,0.00039781,30]
[393423697,1762648237839,-872.0,0.00039789,20]
[393423698,1762648237867,-1000000.0,0.0003988,30]
[393423699,1762648237901,-445.0,0.00039988,90]
[393423702,1762648237929,-178.49015745,0.00039999,31]
[393423705,1762648237959,-177.09656274,0.00039999,15]
[393423709,1762648237986,-153.31155065,0.00039999,31]
[393423710,1762648238014,-586.43400517,0.00039999,31]
[393423711,1762648238041,-500.0,0.00039999,31]
[393423712,1762648238072,-500.0,0.00039999,31]
[393423713,1762648238100,-500.0,0.00039999,31]
[393423714,1762648238129,-500.0,0.00039999,31]
[393423716,1762648238160,-608.37367606,0.00039999,31]
[393423721,1762648238196,-500.0,0.00039999,31]
[393423725,1762648238235,-463.7056536,0.00039999,31]
[393423730,1762648238269,-166.45415363,0.00039999,31]
[393423733,1762648238303,-454.57494126,0.00039999,31]
[393423734,1762648238332,-438.97984162,0.00039999,31]
[393423735,1762648238360,-152.51077635,0.0004,14]
[393423736,1762648238389,-150.0,0.0004,10]
[393423737,1762648238418,-37319.00243419,0.0004,14]
[393423738,1762648238449,-500.0,0.0004,120]
[393423739,1762648238482,-1009.0,0.0004,120]
[393423740,1762648238512,-150.0,0.0004,120]
[393423741,1762648238543,-671.00930346,0.0004,120]
[393423742,1762648238571,-2099.83880799,0.0004,120]
[393423743,1762648238598,-1892.78806765,0.0004,120]
[393423744,1762648238627,-934.51235948,0.0004,30]
[393423745,1762648238655,-205.89238166,0.0004,30]
[393423746,1762648238685,-153.42443002,0.0004,120]
[393423747,1762648238713,-438.44376215,0.0004,120]
[393423748,1762648238739,-14244.08793155,0.0004,30]
[393423749,1762648238768,-200.0,0.0004,120]
[393423750,1762648238796,-471.54974912,0.0004,120]
[393423751,1762648238823,-175.83537677,0.0004,120]
[393423752,1762648238850,-245.89,0.0004,30]
[393423753,1762648238883,-2575.0,0.0004,60]
[393423754,1762648238913,-150.0,0.0004,60]
[393423755,1762648238942,-1490.67908667,0.0004,120]
[393423756,1762648238972,-15000.0,0.0004,120]
[393423757,1762648239005,-2678.11978025,0.0004,60]
[393423758,1762648239034,-10075.4297735,0.0004,20]
[393423759,1762648239066,-150.06154915,0.0004,60]
[393423760,1762648239094,-177.64246732,0.0004,120]
[393423761,1762648239124,-27672.0,0.0004,120]
[393423762,1762648239154,-478.09862864,0.0004,30]
[393423763,1762648239184,-166.06,0.0004,120]
[393423764,1762648239213,-2853.41,0.0004,120]
[393423765,1762648239243,-1873.9642303,0.0004,120]
[393423766,1762648239273,-557.35,0.0004,120]
[393423767,1762648239300,-181.55,0.0004,120]
[393423768,1762648239327,-208.71,0.0004,120]
[393423769,1762648239355,-336.73,0.0004,120]
[393423770,1762648239381,-557.75,0.0004,120]
[393423771,1762648239407,-2139.48,0.0004,120]
[393423772,1762648239435,-384.15,0.0004,120]
[393423773,1762648239463,-536.14,0.0004,120]
[393423774,1762648239494,-150.0,0.00040037,120]
[393423775,1762648239522,-724.96,0.00040055,30]
[393423776,1762648239548,-724.96,0.00040055,30]
[393423777,1762648239577,-652.73,0.000401,30]
[393423778,1762648239603,-872.0,0.0004018,20]
[393423779,1762648239631,-652.73,0.000403,30]
[393423780,1762648239659,-724.96,0.00040329,30]
[393423781,1762648239685,-724.96,0.00040329,30]
[393423782,1762648239713,-150.0,0.00040433,120]
[393423783,1762648239738,-724.96,0.00040603,30]
[393423784,1762648239764,-724.96,0.00040603,30]
[393423785,1762648239792,-1444.0,0.00040658,120]
[393423786,1762648239819,-204.40080516,0.00040744,120]
[393423787,1762648239859,-342.0,0.000408,120]
[393423788,1762648239890,-282.187,0.00040867,59]
[393423789,1762648239919,-724.96,0.00040877,30]
[393423790,1762648239947,-724.96,0.00040877,30]
[393423791,1762648239975,-212.0,0.0004093,30]
[393423792,1762648240006,-150.0,0.00041,10]
[393423793,1762648240035,-150.0,0.00041,120]
[393423794,1762648240064,-1000.0,0.00041,120]
[393423795,1762648240092,-538.20661782,0.00041,30]
[393423796,1762648240120,-20000.0,0.00041,120]
[393423797,1762648240150,-884.49,0.00041,120]
[393423798,1762648240180,-166.0,0.00041,90]
[393423799,1762648240209,-300.0,0.00041068,22]
[393423800,1762648240237,-999.0,0.00041095,120]
[393423801,1762648240266,-10000.0,0.00041096,30]
[393423802,1762648240299,-1107.01,0.00041096,120]
[393423803,1762648240329,-1000.0,0.00041096,15]
[393423804,1762648240358,-1000.0,0.00041096,15]
[393423805,1762648240385,-1000.0,0.00041096,15]
[393423806,1762648240414,-1000.0,0.00041096,15]
[393423807,1762648240619,-1000.0,0.00041096,15]
[393423808,1762648240649,-1000.0,0.00041096,15]
[393423809,1762648240677,-1000.0,0.00041096,15]
[393423810,1762648240705,-1000.0,0.00041096,15]
[393423811,1762648240732,-1000.0,0.00041096,15]
[393423812,1762648240761,-1000.0,0.00041096,15]
[393423813,1762648240787,-1000.0,0.00041096,15]
[393423814,1762648240814,-1000.0,0.00041096,15]
[393423815,1762648240842,-1000.0,0.00041096,15]
[393423816,1762648240873,-1000.0,0.00041096,15]
[393423817,1762648240901,-1000.0,0.00041096,15]
[393423818,1762648240930,-1000.0,0.00041096,15]
[393423819,1762648240959,-1000.0,0.00041096,15]
[393423820,1762648240989,-1000.0,0.00041096,15]
[393423821,1762648241017,-1000.0,0.00041096,15]
[393423822,1762648241044,-1000.0,0.00041096,15]
[393423823,1762648241071,-1000.0,0.00041096,15]
[393423824,1762648241099,-1000.0,0.00041096,15]
[393423825,1762648241128,-1000.0,0.00041096,15]
[393423826,1762648241156,-1000.0,0.00041096,15]
[393423827,1762648241183,-1000.0,0.00041096,15]
[393423828,1762648241209,-1000.0,0.00041096,15]
[393423829,1762648241237,-1000.0,0.00041096,15]
[393423830,1762648241263,-1000.0,0.00041096,15]
[393423831,1762648241288,-1000.0,0.00041096,15]
[393423832,1762648241315,-1000.0,0.00041096,15]
[393423833,1762648241340,-1000.0,0.00041096,15]
[393423834,1762648241366,-1000.0,0.00041096,15]
[393423835,1762648241392,-1000.0,0.00041096,15]
[393423836,1762648241417,-1000.0,0.00041096,15]
[393423837,1762648241442,-1000.0,0.00041096,15]
[393423838,1762648241467,-1000.0,0.00041096,15]
[393423839,1762648241493,-1000.0,0.00041096,15]
[393423840,1762648241519,-1000.0,0.00041096,15]
[393423841,1762648241546,-1000.0,0.00041096,15]
[393423842,1762648241573,-1000.0,0.00041096,15]
[393423843,1762648241600,-1000.0,0.00041096,15]
[393423844,1762648241626,-1000.0,0.00041096,15]
[393423845,1762648241653,-1000.0,0.00041096,15]
[393423846,1762648241680,-1000.0,0.00041096,15]
[393423847,1762648241709,-1000.0,0.00041096,15]
[393423848,1762648241737,-1000.0,0.00041096,15]
[393423849,1762648241766,-1000.0,0.00041096,15]
[393423850,1762648241794,-1000.0,0.00041096,15]
[393423851,1762648241826,-1000.0,0.00041096,15]
[393423852,1762648241854,-1000.0,0.00041096,15]
[393423853,1762648241881,-1000.0,0.00041096,15]
[393423854,1762648241909,-1000.0,0.00041096,15]
[393423855,1762648241937,-1000.0,0.00041096,15]
[393423856,1762648241965,-1000.0,0.00041096,15]
[393423857,1762648241995,-1000.0,0.00041096,15]
[393423858,1762648242024,-1000.0,0.00041096,15]
[393423859,1762648242052,-1000.0,0.00041096,15]
[393423860,1762648242081,-1000.0,0.00041096,15]
[393423861,1762648242108,-1000.0,0.00041096,15]
[393423862,1762648242135,-1000.0,0.00041096,15]
[393423863,1762648242164,-1000.0,0.00041096,15]
[393423864,1762648242192,-553.36,0.00041096,120]
[393423865,1762648242221,-1000.0,0.00041096,15]
[393423866,1762648242249,-1000.0,0.00041096,15]
[393423867,1762648242277,-1000.0,0.00041096,15]
[393423868,1762648242304,-1000.0,0.00041096,15]
[393423869,1762648242332,-1000.0,0.00041096,15]
[393423870,1762648242360,-1000.0,0.00041096,15]
[393423871,1762648242386,-1000.0,0.00041096,15]
[393423872,1762648242415,-1000.0,0.00041096,15]
[393423873,1762648242442,-1000.0,0.00041096,15]
[393423874,1762648242470,-1000.0,0.00041096,15]
[393423875,1762648242497,-1000.0,0.00041096,15]
[393423876,1762648242524,-1000.0,0.00041096,15]
[393423877,1762648242552,-1000.0,0.00041096,15]
[393423878,1762648242578,-1000.0,0.00041096,15]
[393423879,1762648242604,-1000.0,0.00041096,15]
[393423880,1762648242633,-1000.0,0.00041096,15]
[393423881,1762648242661,-1000.0,0.00041096,15]
[393423882,1762648242688,-1000.0,0.00041096,15]
[393423883,1762648242714,-1000.0,0.00041096,15]
[393423884,1762648242740,-1000.0,0.00041096,15]
[393423885,1762648242766,-1000.0,0.00041096,15]
[393423886,1762648242792,-1000.0,0.00041096,15]
[393423890,1762648242818,-1000.0,0.00041096,15]
[393423893,1762648242843,-1000.0,0.00041096,15]
[393423894,1762648242870,-1000.0,0.00041096,15]
[393423895,1762648242897,-1000.0,0.00041096,15]
[393423896,1762648242925,-1000.0,0.00041096,15]
[393423897,1762648242952,-1000.0,0.00041096,15]
[393423898,1762648242980,-1000.0,0.00041096,15]
[393423899,1762648243012,-1000.0,0.00041096,15]
[393423900,1762648243041,-1000.0,0.00041096,15]
[393423901,1762648243069,-1000.0,0.00041096,15]
[393423902,1762648243095,-1000.0,0.00041096,15]
[393423903,1762648243122,-1000.0,0.00041096,15]
[393423904,1762648243149,-1000.0,0.00041096,15]
[393423905,1762648243178,-988.0,0.00041096,15]
[393423906,1762648243207,-724.96,0.00041151,30]
[393423907,1762648243351,-724.96,0.00041151,30]
[393423908,1762648243381,-200.0,0.000414,120]
[393423909,1762648243410,-724.96,0.00041425,30]
[393423910,1762648243438,-724.96,0.00041425,30]
[393423911,1762648243466,-724.96,0.00041699,30]
[393423912,1762648243493,-724.96,0.00041699,30]
[393423913,1762648243521,-724.96,0.00041973,30]
[393423914,1762648243548,-724.96,0.00041973,30]
[393423915,1762648243576,-273.47129591,0.00041999,120]
[393423916,1762648243604,-150.0,0.00042,10]
[393423917,1762648243631,-150.0,0.00042,120]
[393423918,1762648243658,-335.40921184,0.00042,120]
[393423919,1762648243686,-309.92020337,0.00042,120]
[393423920,1762648243713,-573.5889245,0.00042,30]
[393423921,1762648243740,-446.2557493,0.00042,30]
[393423922,1762648243766,-558.36270004,0.00042,30]
[393423923,1762648243793,-554.04027849,0.00042,120]
[393423924,1762648243820,-764.77779991,0.00042,120]
[393423925,1762648243846,-489.54173997,0.00042,30]
[393423926,1762648243879,-200.0,0.00042,120]
[393423927,1762648243906,-20000.0,0.00042,120]
[393423929,1762648243935,-217.44495224,0.00042,120]
[393423933,1762648243963,-1756.93791741,0.00042121,120]
[393423934,1762648243996,-500.0,0.00042381,60]
[393423935,1762648244025,-500.0,0.0004239,60]
[393423936,1762648244053,-500.0,0.00042465,11]
[393423937,1762648244082,-253.27531216,0.000425,120]
[393423938,1762648244109,-28128.46431455,0.000425,120]
[393423939,1762648244136,-204.705345,0.000425,120]
[393423940,1762648244168,-275.39673303,0.000427,90]
[393423941,1762648244198,-757.61,0.0004276,30]
[393423942,1762648244225,-309.84229736,0.00042799,120]
[393423943,1762648244252,-178.88029514,0.00042799,120]
[393423944,1762648244279,-185.30792517,0.00042799,120]
[393423945,1762648244306,-343.24646725,0.000428,60]
[393423946,1762648244332,-212.0,0.0004295,30]
[393423947,1762648244359,-150.0,0.00043,10]
[393423948,1762648244385,-150.0,0.00043,120]
[393423949,1762648244413,-1317.27674339,0.00043,120]
[393423950,1762648244438,-1333.67612438,0.00043,120]
[393423951,1762648244463,-150.0,0.00043,120]
[393423952,1762648244489,-172.54457858,0.00043,120]
[393423953,1762648244516,-16808.30945069,0.00043,120]
[393423954,1762648244544,-20000.0,0.00043,120]
[393423955,1762648244570,-2877.32661386,0.00043,120]
[393423956,1762648244597,-2299.43866765,0.00043,120]
[393423957,1762648244624,-203.81,0.00043014,120]
[393423958,1762648244650,-698.81,0.00043039,30]
[393423959,1762648244676,-954.24,0.00043039,30]
[393423960,1762648244702,-861.10836865,0.0004314,120]
[393423961,1762648244728,-911.4401,0.0004322,30]
[393423962,1762648244754,-853.79824565,0.0004328,120]
[393423963,1762648244779,-500.71596631,0.000433,120]
[393423964,1762648244805,-500.0,0.00043477,60]
[393423965,1762648244831,-500.0,0.00043486,60]
[393423966,1762648244857,-150.0,0.00043586,30]
[393423967,1762648244884,-302.56315612,0.000437,120]
[393423968,1762648244911,-663.46907475,0.000438,30]
[393423969,1762648244939,-423.11804486,0.000438,120]
[393423970,1762648244966,-250.67917087,0.00043835,14]
[393423971,1762648244996,-999.0,0.00043835,120]
[393423972,1762648245023,-1000.0,0.00043836,30]
[393423973,1762648245054,-1000.0,0.00043836,30]
[393423974,1762648245082,-467.25770418,0.000439,120]
[393423975,1762648245109,-1810.37307057,0.00043987,120]
[393423976,1762648245138,-577.36,0.00043998,30]
[393423977,1762648245167,-150.0,0.00044,10]
[393423978,1762648245195,-150.0,0.00044,120]
[393423979,1762648245223,-1019.37990501,0.00044,120]
[393423980,1762648245251,-323.86296298,0.00044,120]
[393423981,1762648245278,-200.0,0.00044,120]
[393423982,1762648245306,-185.71163842,0.00044,120]
[393423983,1762648245335,-283.07082922,0.00044,30]
[393423984,1762648245361,-153.72723063,0.00044,120]
[393423985,1762648245389,-254.31,0.00044,120]
[393423986,1762648245418,-500.0,0.00044,120]
[393423987,1762648245446,-20000.0,0.00044,120]
[393423988,1762648245475,-152.0,0.00044,120]
[393423989,1762648245502,-991.17929309,0.00044,120]
[393423990,1762648245530,-652.73,0.00044,30]
[393423991,1762648245557,-154.0,0.00044,120]
[393423992,1762648245586,-273.480647,0.00044,57]
[393423993,1762648245614,-245.89,0.00044,30]
[393423994,1762648245642,-158.34757333,0.0004425,120]
[393423995,1762648245674,-204.30975317,0.00044398,120]
[393423996,1762648245703,-204.40080516,0.00044398,120]
[393423997,1762648245730,-12586.33896803,0.000444,120]
[393423998,1762648245756,-615.24649237,0.000445,120]
[393423999,1762648245783,-388.21609639,0.000445,120]
[393424000,1762648245811,-500.0,0.00044573,60]
[393424001,1762648245839,-500.0,0.00044582,60]
[393424002,1762648245866,-30000.0,0.000448,30]
[393424003,1762648245893,-152.0,0.000448,120]
[393424004,1762648245919,-441.62130637,0.0004489,120]
[393424005,1762648245946,-30000.0,0.00044899,38]
[393424006,1762648246097,-516.81069004,0.000449,30]
[393424007,1762648246126,-1005.0,0.000449,60]
[393424008,1762648246153,-212.0,0.0004496,30]
[393424009,1762648246182,-2912.68381048,0.0004499,120]
[393424010,1762648246210,-606.6541365,0.00045,10]
[393424011,1762648246237,-150.0,0.00045,10]
[393424012,1762648246264,-200.0,0.00045,120]
[393424013,1762648246297,-150.0,0.00045,120]
[393424014,1762648246324,-1000.0,0.00045,120]
[393424015,1762648246349,-527.68247191,0.00045,120]
[393424016,1762648246376,-743.5581022,0.00045,120]
[393424017,1762648246404,-159.10826563,0.00045,30]
[393424018,1762648246432,-157.73321507,0.00045,120]
[393424019,1762648246459,-189.87511958,0.00045,30]
[393424020,1762648246487,-1000000.0,0.00045,120]
[393424021,1762648246515,-250.0,0.00045,120]
[393424022,1762648246546,-1000000.0,0.00045,120]
[393424024,1762648246577,-37695.30364583,0.00045,120]
[393424025,1762648246744,-417.24911712,0.00017599,2]
[393424026,1762648246754,-591.17447133,0.00017599,2]
[393424027,1762648246764,-500.0,0.00017599,2]
[393424028,1762648246774,-500.0,0.00017599,2]
[393424029,1762648246784,-500.0,0.00017599,2]
[393424030,1762648246793,-500.0,0.00017599,2]
[393424031,1762648246803,-500.0,0.00017599,2]
[393424032,1762648246812,-500.0,0.00017599,2]
[393424033,1762648246822,-188.13421784,0.00017599,2]
[393424034,1762648246832,-211.06823477,0.00017599,2]
[393424035,1762648246842,-577.54570092,0.00017599,2]
[393424036,1762648246851,-3441.11137326,0.000176,2]
[393424037,1762648246933,-505.96095637,0.000176,2]
[393424038,1762648246944,-1016.028,0.000176,2]
[393424039,1762648247059,-203.21798355,0.000175,2]
[393424040,1762648247071,-3796.78201645,0.000176,2]
[393424041,1762648247087,-392.63400015,0.000176,2]
[393424042,1762648247101,-4202.32312226,0.000176,2]
[393424043,1762648247117,-15964.03693745,0.000176,2]
[393424044,1762648247129,-10236.22599999,0.000176,2]
[393424045,1762648247275,-8510.61581677,0.000176,2]
[393424046,1762648247351,-203.21798348,0.00017557,2]
[393424047,1762648247360,-28168.86198971,0.000176,2]
[393424048,1762648247371,-7125.0,0.000176,2]
[393424049,1762648253475,168.38,0.00025181,120]
[393424050,1762648255380,-1389.17,0.00027671,30]
[393424051,1762648255413,-153.2,0.000315,30]
[393424052,1762648255444,-1389.17,0.00034867,30]
[393424053,1762648255477,-249.58,0.000355,14]
[393424054,1762648255506,-153.2,0.000355,30]
[393424055,1762648255548,-249.58,0.00037,14]
[393424056,1762648255577,-153.2,0.00037,30]
[393424057,1762648255619,-1000.0,0.00038397,14]
[393424058,1762648255649,-249.58,0.000385,14]
[393424059,1762648255681,-153.2,0.000385,30]
[393424060,1762648255717,-308.584966,0.00038987,120]
[393424061,1762648255746,-151.0,0.00038987,120]
[393424062,1762648255773,-308.584966,0.00038987,120]
[393424063,1762648255801,-308.584966,0.00038987,120]
[393424064,1762648255830,-308.584966,0.00038987,120]
[393424065,1762648255859,-151.0,0.00038987,120]
[393424066,1762648255897,-308.584966,0.00039076,120]
[393424067,1762648255927,-308.584966,0.00039076,120]
[393424068,1762648255955,-308.584966,0.00039076,120]
[393424069,1762648256115,-308.584968,0.00039076,120]
[393424070,1762648256147,-249.58,0.0004,14]
[393424071,1762648256181,-153.2,0.0004,30]
[393424072,1762648256221,-249.58,0.00042,14]
[393424073,1762648256257,-153.2,0.00042,30]
[393424074,1762648256292,-1389.17,0.00042062,120]
[393424075,1762648256327,-2000.0,0.00044,120]
[393424076,1762648256358,-2000.0,0.00044,120]
[393424077,1762648256389,-2429.08166501,0.00044,120]
[393424078,1762648256428,-962304.69635417,0.00045,120]